bitfinex-derivatives/quotes_ETHF0:USTF0_20241129
["timestamp","ask_amount","ask_price","bid_price","bid_amount"]
[1732899418384,0.27731,3601.8,3601.7,0.78232883]
[1732899418697,0.27731,3601.8,3601.7,1.05964883]
[1732899419100,0.432,3602.1,3601.7,0.78232883]
[1732899419390,0.432,3602.5,3602.0,3.2078]
[1732899419595,0.432,3602.5,3602.4,0.27727]
[1732899419792,0.432,3602.5,3602.1,0.8368]
[1732899419989,0.432,3602.5,3602.2,0.27728]
[1732899419990,0.27728,3602.3,3602.2,0.27728]
[1732899420390,0.27728,3602.2,3602.1,0.27729]
[1732899420590,0.27728,3602.2,3602.1,1.146]
[1732899421394,0.432,3602.5,3602.0,1.146]
[1732899421595,0.27729,3602.1,3602.0,1.156]
[1732899422199,0.27729,3602.1,3602.0,0.01]
[1732899422395,0.27734,3601.5,3601.4,1.146]
[1732899422591,0.27734,3601.5,3601.4,1.246]
[1732899422992,0.27734,3601.5,3601.4,0.1]
[1732899423302,3.2078,3601.5,3600.8,1.146]
[1732899423595,3.2078,3601.5,3600.8,1.236]
[1732899423596,0.27738,3600.9,3600.8,1.236]
[1732899423794,0.27738,3600.9,3600.8,0.09]
[1732899424396,0.27738,3600.9,3600.8,0.36739]
[1732899424596,0.27738,3600.9,3600.8,0.09]
[1732899424898,0.27738,3600.9,3600.8,0.36739]
[1732899425898,0.27738,3600.9,3600.8,0.09]
[1732899426204,0.27737,3601.1,3600.8,0.09]
[1732899426401,0.27737,3601.2,3601.1,0.27736]
[1732899427105,0.27735,3601.4,3601.3,0.27734]
[1732899427697,0.27737,3601.2,3601.1,0.27736]
[1732899428006,0.27737,3601.2,3601.1,0.55736]
[1732899428205,0.27735,3601.5,3601.4,0.27734]
[1732899429003,0.27735,3601.5,3601.4,0.28734]
[1732899429203,0.70203,3601.7,3601.6,0.27733]
[1732899429796,0.27732,3601.8,3601.7,0.27731]
[1732899430202,3.2078,3602.0,3601.9,0.2773]
[1732899430203,0.27731,3602.0,3601.9,0.2773]
[1732899430406,0.8333,3602.1,3602.0,0.27729]
[1732899430407,0.27729,3602.1,3602.0,0.27729]
[1732899431101,0.8333,3602.6,3601.8,1.3296]
[1732899431102,0.27731,3602.0,3601.9,0.2773]
[1732899431400,0.69318,3602.4,3601.8,1.3296]
[1732899431401,0.27731,3601.9,3601.8,1.3296]
[1732899431599,0.27731,3601.9,3601.8,1.3896]
[1732899431899,0.27731,3601.9,3601.8,1.66691]
[1732899433304,0.27731,3601.9,3601.8,1.3896]
[1732899433604,0.27731,3601.9,3601.8,1.66691]
[1732899434411,3.48508,3602.4,3602.3,0.27728]
[1732899434702,3.48508,3602.4,3601.8,1.60691]
[1732899434703,0.27731,3601.9,3601.8,1.60691]
[1732899434904,0.27731,3601.9,3601.8,1.67691]
[1732899436302,0.27731,3601.9,3601.8,0.07]
[1732899436896,0.27731,3601.9,3601.8,0.34731]
[1732899437203,0.27731,3601.9,3601.8,0.07]
[1732899437506,0.27731,3601.9,3601.8,0.03966626]
[1732899439003,3.48511,3601.9,3601.8,0.03966626]
[1732899439305,3.48511,3601.9,3601.0,1.146]
[1732899439306,0.27737,3601.1,3601.0,1.146]
[1732899439512,0.27737,3601.1,3601.0,1.306]
[1732899439905,0.27737,3601.1,3601.0,1.58338]
[1732899440100,1.2953,3601.8,3601.0,1.306]
[1732899440306,0.27734,3601.5,3601.4,0.27734]
[1732899440501,0.8645,3601.8,3601.4,0.01]
[1732899440708,0.27733,3601.7,3601.6,0.27732]
[1732899443810,0.27733,3601.6,3601.5,0.69043]
[1732899444005,0.27733,3601.6,3601.5,0.03]
[1732899444404,3.17933225,3601.8,3601.0,1.146]
[1732899444405,0.27737,3601.1,3601.0,1.146]
[1732899444607,0.27737,3601.1,3601.0,0.05]
[1732899445505,0.69097,3601.1,3601.0,0.05]
[1732899446109,0.27739,3600.8,3600.7,1.146]
[1732899446303,0.27739,3600.8,3600.7,1.216]
[1732899447312,0.27739,3600.8,3600.7,1.4934]
[1732899447707,0.27739,3600.9,3600.8,0.27738]
[1732899447904,0.4136,3601.1,3600.9,0.27738]
[1732899447905,0.27738,3601.0,3600.9,0.27738]
[1732899448108,0.4349,3601.2,3601.1,0.27737]
[1732899448305,3.48516,3601.3,3601.2,0.27736]
[1732899448516,3.48515,3601.3,3601.2,1.18046]
[1732899448716,3.2078,3601.3,3601.2,1.18046]
[1732899449111,3.2078,3602.0,3601.2,0.9031]
[1732899449310,0.27735,3601.5,3601.4,0.27734]
[1732899449510,0.27732,3601.8,3601.7,0.27731]
[1732899449707,0.4414,3601.9,3601.8,0.27731]
[1732899449919,3.48511,3602.0,3601.9,0.27731]
[1732899449920,3.2078,3602.0,3601.9,0.27731]
[1732899450212,0.27727,3602.4,3602.3,0.27727]
[1732899450419,0.27727,3602.4,3602.3,0.28727]
[1732899450614,0.27724,3602.8,3602.7,0.27724]
[1732899451016,0.27726,3602.6,3602.5,0.27725]
[1732899451219,0.27724,3602.8,3602.7,0.27724]
[1732899451818,3.24813,3602.9,3602.8,0.27724]
[1732899451819,3.52537,3602.9,3602.8,0.27724]
[1732899452214,0.04033,3602.9,3602.4,0.4492]
[1732899452410,0.27725,3602.8,3602.7,0.27724]
[1732899453213,0.31756,3602.9,3602.8,0.27724]
[1732899454715,0.04033,3602.9,3602.8,0.27724]
[1732899455619,0.04033,3602.9,3602.8,0.28724]
[1732899456827,0.31756,3602.9,3602.8,0.28724]
[1732899458323,0.27726,3602.5,3602.4,0.27726]
[1732899458531,0.27726,3602.5,3602.4,0.08]
[1732899458826,0.27728,3602.3,3602.2,1.42028]
[1732899459027,4.31472,3602.8,3602.2,1.203]
[1732899459028,0.4453,3602.4,3602.2,1.203]
[1732899459231,0.4453,3602.4,3602.3,0.27728]
[1732899459435,0.4453,3602.4,3602.3,0.30728]
[1732899459929,0.4453,3602.4,3602.2,0.82319798]
[1732899460234,0.4453,3602.4,3602.3,0.27728]
[1732899460434,0.4453,3602.4,3602.3,0.91728]
[1732899460623,3.2078,3602.8,3602.3,0.64]
[1732899460828,0.27725,3602.7,3602.6,0.27725]
[1732899461028,0.27725,3602.7,3602.6,0.20390121]
[1732899461741,0.27724,3602.8,3602.7,0.27724]
[1732899461940,0.27724,3602.8,3602.7,0.38724]
[1732899462741,0.31757,3602.9,3602.8,0.27724]
[1732899462930,0.31757,3602.9,3602.8,0.35724]
[1732899463640,0.31757,3602.9,3602.8,0.08]
[1732899464329,0.27724,3602.9,3602.8,0.35724]
[1732899466630,0.4152,3603.0,3602.8,0.08]
[1732899466836,0.69243,3603.0,3602.9,0.27723]
[1732899467039,0.69243,3603.0,3602.9,0.29723]
[1732899469331,0.69243,3603.0,3602.9,0.02]
[1732899470036,0.69243,3603.0,3602.9,0.29723]
[1732899470435,0.69243,3603.0,3602.9,0.02]
[1732899471941,0.69243,3603.0,3602.9,0.29723]
[1732899472335,0.69243,3603.0,3602.9,0.02]
[1732899472538,0.69243,3603.0,3602.9,0.29723]
[1732899472739,0.69243,3603.0,3602.9,0.02]
[1732899473338,0.69243,3603.0,3602.9,0.29723]
[1732899473545,0.69243,3603.0,3602.9,0.02]
[1732899475340,0.69243,3603.0,3602.9,0.01171826]
[1732899476639,0.69243,3603.0,3602.9,0.00783603]
[1732899476839,0.69243,3603.0,3602.9,0.28506603]
[1732899477640,0.69243,3603.0,3602.9,0.00783603]
[1732899478448,0.69243,3603.0,3602.9,0.28506603]
[1732899481144,0.69243,3603.0,3602.9,0.00783603]
[1732899482247,0.69243,3603.0,3602.9,0.28506603]
[1732899482554,0.27723,3603.0,3602.9,0.28506603]
[1732899484152,0.27723,3603.0,3602.9,0.00783603]
[1732899485655,0.27723,3603.0,3602.4,0.85]
[1732899485656,0.27724,3602.8,3602.7,0.27724]
[1732899485849,0.27726,3602.7,3602.6,0.27725]
[1732899486154,0.27726,3602.7,3602.6,0.40725]
[1732899487255,0.4525,3603.1,3602.7,0.27724]
[1732899487256,0.27725,3602.8,3602.7,0.27724]
[1732899487449,0.27725,3602.8,3602.2,1.41728]
[1732899487450,0.27728,3602.3,3602.2,1.41728]
[1732899487756,0.27728,3602.3,3602.2,1.25]
[1732899487952,0.27728,3602.3,3602.2,0.11]
[1732899488157,0.27728,3602.3,3602.2,0.38728]
[1732899488356,0.27728,3602.3,3602.2,0.11]
[1732899489055,3.2078,3602.4,3601.8,1.41731]
[1732899489355,0.27731,3601.9,3601.8,1.57731]
[1732899490055,0.2773,3602.1,3602.0,0.27729]
[1732899490248,0.4218,3602.2,3602.0,0.04]
[1732899490556,0.27729,3602.1,3602.0,0.04]
[1732899491448,0.4206,3602.1,3601.6,1.57793]
[1732899491654,0.27732,3601.7,3601.6,1.26]
[1732899491956,0.27732,3601.7,3601.6,0.12]
[1732899493461,0.27734,3601.5,3601.4,1.14]
[1732899493654,0.27734,3601.5,3601.4,1.2]
[1732899494154,3.2078,3601.6,3601.2,1.2857]
[1732899494356,0.27735,3601.3,3601.2,0.4767]
[1732899496556,0.27735,3601.3,3601.2,0.75406]
[1732899496759,0.27735,3601.3,3601.2,0.4767]
[1732899497160,0.27735,3601.3,3601.2,0.75406]
[1732899497557,0.27735,3601.4,3601.3,0.27735]
[1732899497763,3.2078,3602.0,3601.3,0.9138]
[1732899497956,0.27733,3601.7,3601.6,0.27733]
[1732899498152,0.27731,3601.9,3601.8,0.27731]
[1732899498359,0.27731,3601.9,3601.8,0.39731]
[1732899498656,0.27731,3602.0,3601.9,0.2773]
[1732899498855,0.2773,3602.0,3601.9,0.05]
[1732899499356,0.2773,3602.0,3601.3,0.4238]
[1732899499357,3.2078,3602.0,3601.3,0.4238]
[1732899499555,3.2078,3602.0,3601.0,1.14]
[1732899499556,0.27737,3601.1,3601.0,1.14]
[1732899499762,0.27737,3601.1,3601.0,1.22]
[1732899499954,0.27737,3601.1,3601.0,1.14]
[1732899500357,0.2774,3600.7,3600.6,0.4291]
[1732899500558,0.2774,3600.7,3600.6,1.7491]
[1732899501156,0.2774,3600.7,3600.6,1.32]
[1732899502160,3.2078,3600.8,3599.6,5.52263225]
[1732899502360,3.2078,3600.4,3599.8,0.27746]
[1732899502558,0.27746,3599.9,3599.8,4.33]
[1732899503558,0.27746,3599.9,3599.8,3.19]
[1732899503762,0.27746,3599.9,3599.8,3.46747]
[1732899504060,0.27746,3599.9,3599.8,3.19]
[1732899504969,0.27746,3599.9,3599.8,3.46747]
[1732899505270,3.90137,3600.4,3599.8,3.19]
[1732899505475,0.27746,3600.0,3599.9,0.27746]
[1732899505671,0.27746,3600.0,3599.9,2.51]
[1732899505865,0.27746,3600.0,3599.9,2.78746]
[1732899506067,0.27746,3600.0,3599.9,2.51]
[1732899506470,0.27746,3600.0,3599.9,2.78746]
[1732899507471,3.2078,3600.4,3599.9,2.51]
[1732899507672,0.27743,3600.3,3600.2,0.27743]
[1732899507974,0.27743,3600.3,3600.2,0.01]
[1732899508171,0.27745,3600.1,3600.0,3.02078225]
[1732899508369,0.27745,3600.1,3600.0,1.03595]
[1732899508768,0.27745,3600.1,3600.0,0.33]
[1732899513678,0.69145,3600.1,3600.0,0.33]
[1732899516071,0.69145,3600.1,3599.4,0.2775]
[1732899516072,0.27749,3599.5,3599.4,0.2775]
[1732899516277,0.27749,3599.5,3599.4,4.5875]
[1732899516975,0.27749,3599.5,3599.4,4.31]
[1732899517180,0.27749,3599.5,3599.4,5.447]
[1732899517377,0.27749,3599.5,3599.4,4.31]
[1732899517979,3.48529,3599.5,3599.4,4.31]
[1732899522582,3.2078,3599.5,3599.1,1.137]
[1732899522779,0.27752,3599.2,3599.1,3.477]
[1732899522988,0.27752,3599.2,3599.1,2.34]
[1732899523383,0.27752,3599.3,3599.2,0.27751]
[1732899523579,0.27752,3599.3,3599.2,1.38751]
[1732899524178,0.27751,3599.4,3599.3,0.2775]
[1732899524383,0.27751,3599.4,3599.3,1.4994]
[1732899524685,0.27749,3599.6,3599.5,0.27748]
[1732899524987,0.4305,3599.8,3599.7,0.27747]
[1732899524988,0.27747,3599.8,3599.7,0.27747]
[1732899525183,4.3331,3600.3,3599.7,1.71]
[1732899525184,0.4103,3600.2,3599.7,1.71]
[1732899525376,0.27744,3600.2,3600.1,0.27745]
[1732899525582,3.91694,3600.3,3600.2,0.27744]
[1732899525788,3.2078,3600.3,3600.2,0.29744]
[1732899525982,3.2078,3600.3,3600.2,1.2977]
[1732899526177,3.48523,3600.3,3600.2,1.57514]
[1732899526376,3.48523,3600.3,3600.2,1.2977]
[1732899526583,3.48523,3600.3,3600.2,1.57514]
[1732899526779,3.48523,3600.3,3600.2,1.2977]
[1732899527076,3.48523,3600.3,3600.2,0.4723]
[1732899528978,0.27743,3600.3,3600.2,0.4723]
[1732899529197,0.4317,3600.9,3600.2,0.4723]
[1732899529198,0.02873,3601.0,3600.2,0.4723]
[1732899529481,0.02873,3601.0,3600.9,0.27738]
[1732899529691,0.02873,3601.0,3600.9,2.92088]
[1732899529888,0.02873,3601.0,3600.9,2.6435]
[1732899529889,0.30611,3601.0,3600.9,2.6435]
[1732899530189,0.30611,3601.0,3600.9,2.92088]
[1732899530391,0.02873,3601.0,3600.9,2.92088]
[1732899532288,0.30611,3601.0,3600.9,2.92088]
[1732899533192,0.02873,3601.0,3600.9,2.92088]
[1732899535688,0.4425,3601.5,3600.9,2.92088]
[1732899535689,0.27734,3601.5,3601.4,0.27734]
[1732899535988,0.27734,3601.5,3601.4,0.28735]
[1732899536390,0.8609,3602.0,3601.4,0.01]
[1732899536791,0.27733,3601.7,3601.6,0.27732]
[1732899536991,0.27734,3601.6,3601.5,0.27733]
[1732899537289,0.8609,3602.0,3601.2,3.2078]
[1732899537486,0.27732,3601.8,3601.7,0.27732]
[1732899537689,0.7285,3602.0,3601.9,0.27731]
[1732899538088,0.7285,3602.0,3601.8,1.2554]
[1732899538089,0.27731,3601.9,3601.8,1.53271]
[1732899538392,0.27731,3601.8,3601.7,1.137]
[1732899539384,0.27731,3601.8,3601.7,1.147]
[1732899539591,0.27731,3601.8,3601.7,1.42432]
[1732899540391,0.27731,3601.8,3601.7,1.147]
[1732899541096,0.27733,3601.6,3601.5,1.134]
[1732899541296,0.27733,3601.6,3601.5,1.204]
[1732899542295,0.27733,3601.6,3601.5,0.07]
[1732899543196,3.2078,3601.7,3601.4,1.134]
[1732899543391,0.27734,3601.5,3601.4,1.134]
[1732899544600,3.2078,3601.7,3601.1,0.27736]
[1732899544895,0.27736,3601.2,3601.1,0.09]
[1732899545496,1.10286,3601.2,3601.1,0.09]
[1732899547799,0.27738,3601.0,3600.9,1.134]
[1732899547996,0.27738,3601.0,3600.9,1.204]
[1732899548508,0.8255,3601.2,3600.9,1.204]
[1732899548702,0.2774,3601.0,3600.9,1.204]
[1732899548902,0.2774,3601.0,3600.5,0.8635]
[1732899548903,2.31483225,3601.1,3600.1,0.11]
[1732899549205,3.2078,3600.8,3600.2,1.134]
[1732899549504,0.27746,3600.3,3600.2,1.55146]
[1732899549901,0.27746,3600.4,3600.3,0.27746]
[1732899550204,3.2078,3600.8,3600.3,0.07]
[1732899550398,0.27745,3600.4,3600.3,0.07]
[1732899551900,3.48525,3600.4,3600.3,0.07]
[1732899552101,0.69365,3600.3,3599.5,0.4285]
[1732899552406,3.2078,3600.0,3599.5,0.4285]
[1732899552701,0.2775,3599.7,3599.6,0.27751]
[1732899553306,0.2775,3599.7,3599.6,1.41151]
[1732899553603,3.2078,3600.0,3599.3,0.4467]
[1732899553904,0.27753,3599.4,3599.3,1.134]
[1732899554107,0.27754,3599.3,3599.2,1.134]
[1732899555204,4.0411,3599.6,3598.7,3.6487]
[1732899555205,0.27757,3598.9,3598.8,0.27757]
[1732899555408,0.27757,3598.9,3598.8,2.11157]
[1732899555603,0.27756,3599.0,3598.8,2.11157]
[1732899555904,0.69381,3599.5,3598.8,0.7]
[1732899555905,0.27757,3598.9,3598.8,0.7]
[1732899556111,0.72657,3598.9,3598.7,3.6487]
[1732899556298,0.27757,3598.8,3598.7,0.8809]
[1732899556498,0.72657,3598.9,3598.8,1.41157]
[1732899558530,0.72657,3598.9,3598.8,1.134]
[1732899558708,0.449,3598.9,3598.7,0.27758]
[1732899558908,0.72657,3598.9,3598.8,1.41157]
[1732899559515,0.449,3598.9,3598.8,1.41157]
[1732899559711,0.27756,3599.0,3598.9,0.27757]
[1732899560219,0.27757,3598.9,3598.8,1.41157]
[1732899561510,0.27757,3598.9,3598.8,1.134]
[1732899561808,3.2078,3599.2,3598.7,0.27758]
[1732899562006,3.2078,3599.2,3598.8,0.27757]
[1732899562201,0.27757,3598.9,3598.8,1.78757]
[1732899562404,0.27757,3598.9,3598.8,1.51]
[1732899562814,3.2078,3599.2,3598.8,1.51]
[1732899563004,0.27757,3598.9,3598.8,1.78757]
[1732899563407,0.27757,3598.9,3598.8,1.51]
[1732899565707,0.27757,3598.9,3598.8,1.78757]
[1732899566611,0.27757,3598.9,3598.8,1.51]
[1732899567115,0.27757,3598.9,3598.8,1.78757]
[1732899567415,0.27757,3598.9,3598.8,1.51]
[1732899568921,3.2078,3599.2,3598.8,1.51]
[1732899569109,0.27757,3598.9,3598.8,1.78757]
[1732899569416,0.27757,3599.0,3598.9,0.27756]
[1732899569605,3.2078,3599.2,3598.9,0.27756]
[1732899569606,3.2078,3599.2,3598.9,0.97]
[1732899569806,3.6251,3599.6,3598.9,0.97]
[1732899570015,3.6251,3599.6,3599.5,0.27752]
[1732899570016,3.48532,3599.6,3599.5,0.27752]
[1732899570817,0.27753,3599.5,3599.4,0.27753]
[1732899571120,0.27753,3599.5,3599.4,0.03]
[1732899571607,1.14533,3599.5,3599.4,0.03]
[1732899571914,1.14533,3599.5,3599.2,0.4523]
[1732899571915,0.8678,3599.5,3599.2,0.72984]
[1732899572115,0.27754,3599.3,3599.2,0.77984]
[1732899573510,0.8678,3599.5,3599.2,0.5023]
[1732899573721,0.27753,3599.4,3599.3,0.27753]
[1732899573918,0.27753,3599.4,3599.3,0.29753]
[1732899574317,3.2078,3599.6,3599.3,0.29753]
[1732899574518,0.8516,3599.9,3599.3,0.02]
[1732899574723,0.2775,3599.8,3599.7,0.2775]
[1732899575216,0.27751,3599.7,3599.6,0.27751]
[1732899575417,0.27751,3599.7,3599.5,0.73257094]
[1732899575418,0.27751,3599.6,3599.5,0.73257094]
[1732899575622,0.27751,3599.6,3599.5,0.75257094]
[1732899575923,0.27751,3599.6,3599.5,0.02795094]
[1732899576127,0.27751,3599.6,3599.5,0.28547094]
[1732899576328,3.4853,3599.7,3599.6,0.27751]
[1732899576524,0.4296,3599.9,3599.5,0.00795094]
[1732899576824,0.27749,3600.0,3599.9,0.27748]
[1732899577025,3.2078,3600.1,3599.7,0.27749]
[1732899577026,0.2775,3599.8,3599.7,0.27749]
[1732899579731,0.2775,3599.9,3599.8,0.27749]
[1732899580225,0.2775,3599.9,3599.8,0.15827837]
[1732899580522,0.2775,3599.9,3599.5,0.00795094]
[1732899580523,0.27751,3599.6,3599.5,0.00795094]
[1732899580723,0.27755,3599.1,3599.0,0.27755]
[1732899580919,0.27753,3599.5,3599.4,0.27752]
[1732899581123,3.2078,3599.6,3599.5,0.27751]
[1732899581124,0.27752,3599.6,3599.5,0.27751]
[1732899581824,0.27751,3599.7,3599.6,0.2775]
[1732899582024,0.4194,3599.8,3599.4,0.8703]
[1732899582322,0.27752,3599.6,3599.5,0.68601]
[1732899583423,0.4194,3599.8,3599.5,0.4085]
[1732899583622,0.27751,3599.7,3599.6,0.27751]
[1732899586027,0.6969,3599.8,3599.7,0.2775]
[1732899586635,0.2775,3599.8,3599.7,0.2775]
[1732899587731,0.4386,3599.9,3599.5,0.4085]
[1732899587926,0.27751,3599.7,3599.6,0.27751]
[1732899588427,0.27751,3599.7,3599.5,0.4085]
[1732899588428,0.4386,3599.9,3599.5,0.4085]
[1732899588653,3.2078,3599.6,3599.0,1.131]
[1732899588829,0.4242,3599.5,3599.0,1.181]
[1732899589031,0.27754,3599.3,3599.2,0.27754]
[1732899590533,0.27754,3599.3,3599.2,0.28754]
[1732899591133,0.27754,3599.3,3599.2,0.27754]
[1732899591329,0.4176,3599.4,3599.0,1.131]
[1732899591535,0.69815,3599.2,3599.1,0.27754]
[1732899592132,0.69815,3599.2,3599.0,1.131]
[1732899592437,0.27755,3599.1,3599.0,1.29094]
[1732899592737,0.27755,3599.1,3599.0,1.4085]
[1732899595234,3.90595,3599.2,3599.1,0.27755]
[1732899595437,3.6284,3599.2,3599.1,0.27755]
[1732899595630,3.6284,3599.2,3599.1,0.72475]
[1732899595631,3.90594,3599.2,3599.1,0.72475]
[1732899596033,3.6284,3599.2,3599.1,0.72475]
[1732899596331,3.12857906,3599.2,3599.1,0.72475]
[1732899596530,0.4209,3600.0,3599.1,1.3674]
[1732899596531,0.27751,3599.6,3599.1,1.3674]
[1732899596739,0.27751,3599.6,3599.5,0.27752]
[1732899596933,0.27751,3599.8,3599.7,0.2775]
[1732899597238,0.27751,3599.8,3599.7,0.15923071]
[1732899598136,0.27752,3599.6,3599.5,0.27751]
[1732899598633,0.27751,3599.8,3599.7,0.2775]
[1732899598829,4.0535,3599.9,3599.8,0.2775]
[1732899599046,4.33099,3599.9,3599.8,0.2775]
[1732899599531,3.2078,3599.9,3599.8,0.2775]
[1732899599830,3.48529,3599.9,3599.8,0.2775]
[1732899600032,0.69367,3600.3,3599.4,0.69381]
[1732899600033,0.27748,3600.0,3599.4,0.69381]
[1732899600231,0.27748,3600.2,3600.1,0.27747]
[1732899600431,3.2078,3600.3,3599.5,3.90161]
[1732899600630,0.27748,3600.1,3600.0,0.27748]
[1732899600835,0.27749,3600.0,3599.9,0.27749]
[1732899601033,3.2078,3600.3,3599.8,1.128]
[1732899601034,0.27749,3599.9,3599.8,1.128]
[1732899601238,3.48529,3599.9,3599.8,1.128]
[1732899601434,3.48529,3599.9,3599.1,2.01128]
[1732899601435,0.27751,3599.6,3599.5,1.40552]
[1732899601735,0.414,3599.8,3599.7,0.2775]
[1732899601931,3.2078,3600.3,3599.5,1.128]
[1732899602243,0.27751,3599.7,3599.6,0.27751]
[1732899602438,3.2078,3599.8,3599.5,1.128]
[1732899603039,0.27751,3599.7,3599.6,0.27751]
[1732899603541,0.4472,3599.7,3599.6,0.16018539]
[1732899604261,0.27748,3600.0,3599.6,1.128]
[1732899604537,3.6543,3600.2,3599.6,1.128]
[1732899604843,3.93178,3600.2,3600.1,0.27747]
[1732899605030,3.93178,3600.2,3600.1,0.18741416]
[1732899605234,3.6543,3600.2,3599.6,0.0998765]
[1732899605429,3.2078,3600.6,3599.8,3.2078]
[1732899605736,0.27748,3600.1,3600.0,0.27747]
[1732899606041,0.27748,3600.0,3599.9,0.71569]
[1732899606346,0.27749,3599.9,3599.8,1.128]
[1732899606542,0.27749,3599.9,3599.8,0.2775]
[1732899606741,0.27749,3599.9,3599.6,1.5662]
[1732899606742,0.4362,3600.0,3599.6,1.5662]
[1732899606939,0.4362,3600.0,3599.9,0.27749]
[1732899607141,0.71368,3600.0,3599.9,0.27749]
[1732899607337,0.2775,3599.8,3599.7,0.2775]
[1732899607539,0.4362,3600.0,3599.6,1.5662]
[1732899607939,0.27749,3599.9,3599.8,0.27749]
[1732899608239,0.4362,3600.0,3599.6,1.5662]
[1732899608437,3.48527,3600.2,3600.1,0.27747]
[1732899608837,0.27749,3599.9,3599.8,0.27749]
[1732899609032,3.2078,3600.2,3599.6,1.25488773]
[1732899609241,0.27747,3600.1,3600.0,0.27748]
[1732899609843,3.2078,3600.2,3600.1,0.27747]
[1732899610152,3.2078,3600.2,3599.6,1.25488773]
[1732899610342,0.27749,3600.0,3599.9,0.27748]
[1732899610540,3.2078,3600.2,3599.6,0.12688773]
[1732899610839,0.2775,3599.9,3599.8,0.27749]
[1732899611033,0.2775,3599.9,3599.7,1.128]
[1732899611034,0.27748,3600.1,3600.0,0.27748]
[1732899611234,3.48527,3600.2,3600.1,0.27747]
[1732899611439,3.2078,3600.2,3600.1,0.27747]
[1732899611736,0.70244,3600.5,3600.4,0.27745]
[1732899612139,0.70244,3600.5,3600.3,0.27745]
[1732899612140,0.27746,3600.4,3600.3,0.27745]
[1732899612335,0.425,3600.5,3599.7,1.128]
[1732899612533,3.48526,3600.3,3600.2,0.27747]
[1732899612743,3.2078,3600.3,3600.2,0.27747]
[1732899612938,3.48526,3600.3,3600.2,0.27747]
[1732899613544,3.2078,3600.3,3600.2,0.27747]
[1732899613949,3.6249,3600.8,3599.8,0.69375]
[1732899614247,0.27747,3600.3,3600.2,0.27746]
[1732899614634,3.2078,3600.4,3599.7,4.7759]
[1732899614839,3.2078,3600.4,3599.7,0.6801]
[1732899615142,3.2078,3600.0,3599.8,1.128]
[1732899615342,0.27749,3599.9,3599.8,1.41549]
[1732899615739,0.27749,3599.9,3599.8,1.138]
[1732899615935,0.27749,3599.9,3599.8,1.4155]
[1732899616137,0.4469,3600.1,3599.8,1.138]
[1732899616341,0.27749,3600.0,3599.9,0.27748]
[1732899617145,0.4194,3600.2,3599.9,1.128]
[1732899617539,0.69687,3600.2,3600.1,0.27747]
[1732899617741,0.27747,3600.3,3600.2,0.27746]
[1732899618048,0.27748,3600.1,3600.0,0.27747]
[1732899618443,3.2078,3600.4,3599.9,1.128]
[1732899618647,0.27746,3600.3,3600.2,0.27746]
[1732899618943,3.48525,3600.4,3600.3,0.27746]
[1732899620139,0.27748,3600.2,3600.1,0.27746]
[1732899620556,3.2078,3600.3,3599.9,1.128]
[1732899620751,3.48526,3600.3,3600.2,0.27747]
[1732899622349,0.27748,3600.0,3599.7,0.2775]
[1732899622549,5.52263225,3599.8,3598.4,3.2078]
[1732899622752,0.27759,3598.7,3598.6,0.27758]
[1732899622949,3.48539,3598.7,3598.6,0.36758]
[1732899623451,3.2078,3598.7,3598.6,0.27758]
[1732899624852,0.27756,3599.1,3598.6,0.02]
[1732899625052,0.27756,3599.1,3599.0,0.27756]
[1732899625553,0.27755,3599.2,3599.1,0.27754]
[1732899625759,0.8805,3599.4,3598.7,0.69395]
[1732899625948,0.71663,3599.4,3599.3,0.27754]
[1732899626352,0.4391,3599.4,3599.3,0.27754]
[1732899626559,3.2078,3599.5,3599.4,0.27753]
[1732899626763,3.2078,3599.5,3599.4,0.29753]
[1732899626956,3.2078,3599.5,3599.4,0.27753]
[1732899627156,3.2078,3599.5,3599.4,1.43553]
[1732899628256,3.48532,3599.5,3599.4,1.43553]
[1732899628456,3.2078,3599.5,3599.4,1.43553]
[1732899629858,0.4132,3600.1,3600.0,0.27748]
[1732899629859,0.27748,3600.1,3600.0,0.27748]
[1732899630262,0.27749,3600.0,3599.9,0.27748]
[1732899631163,0.2775,3599.8,3599.7,0.2775]
[1732899631363,0.27749,3599.9,3599.7,0.01]
[1732899631668,0.4348,3599.8,3599.7,0.2775]
[1732899631975,0.7123,3599.8,3599.7,0.2775]
[1732899632262,0.4348,3599.8,3599.7,0.2775]
[1732899632665,0.7123,3599.8,3599.7,0.2775]
[1732899632867,0.7123,3599.8,3599.6,1.125]
[1732899632868,0.2775,3599.7,3599.6,1.125]
[1732899633164,0.7123,3599.8,3599.6,1.125]
[1732899633368,0.7123,3599.8,3599.7,0.2775]
[1732899633584,0.4348,3599.8,3599.7,0.2775]
[1732899633765,0.4348,3599.8,3599.6,1.125]
[1732899634165,0.7123,3599.8,3599.7,0.2775]
[1732899635468,0.2775,3599.7,3599.6,1.4025]
[1732899635864,0.2775,3599.7,3599.6,1.125]
[1732899636068,0.2775,3599.7,3599.6,0.27751]
[1732899636267,0.27752,3599.6,3599.5,0.27752]
[1732899636471,0.27752,3599.5,3599.4,1.40252]
[1732899636667,0.27752,3599.6,3599.5,0.27751]